Cogmind - Beta 11 X4 @@@ ROGUE MODE // 2021.05.06 @ 14:30:20 Player: cptwinky Result: Escaped! Performance ------------- Evolutions (9) 4500 Regions Visited (30) 6000 Robots Destroyed (391) 1955 Value Destroyed (18459) 18459 Prototype IDs (58) 1160 Alien Tech Used (4) 800 Bonus (13642) 13642 TOTAL SCORE: 46516 Bonus ------- High Alert Combat Kills 4309 Follower Combat Kills 2424 Entered Garrisons 600 Used RIF Installer 1000 Network Hubs Disabled 200 Met Data Miner 300 Met Zhirov 300 Built Enhanced Grunts 300 A7 Reached Mainframe 300 Met R17 at Cetus 500 Met R17 at Research 2000 Win 3000 Friendly Fire -1591 Cogmind --------- Core Integrity 1461/1600 Matter 230/300 Energy 348/350 System Corruption 0% Temperature Cool (4) Movement Flying (34) Location To Epsilon Eridani Parts ------- > --- POWER (2) -------- Quantum Reactor > --- PROPULSION (8) --- Nuclear Pulse Array Impulse Thruster Array Impulse Thruster Array Impulse Thruster Array > --- UTILITY (14) ----- Advanced Weight Redist. System Makeshift Trap Scanner Advanced Visual Processing Unit Spectral Analyzer Advanced Signal Interpreter Experimental Targeting Computer Experimental Core Analyzer Reaction Control System Centrium Light Armor Plating Centrium Light Armor Plating Experimental Thermal Shield Hacking Suite Improved System Shield > --- WEAPON (2) ------- Compact HERF Cannon Plasma Lance > --- INVENTORY (5) ---- Particle Reactor Biometal Heavy Treads Reaction Control System Gamma Bomb Array Peak State ------------ > --- POWER ------------ Quantum Reactor > --- PROPULSION ------- Impulse Thruster Array Impulse Thruster Array Impulse Thruster Array Impulse Thruster Array > --- UTILITY ---------- Advanced Weight Redist. System Makeshift Trap Scanner Advanced Visual Processing Unit Spectral Analyzer Advanced Signal Interpreter Experimental Targeting Computer Experimental Core Analyzer Maneuvering Thrusters Centrium Light Armor Plating Centrium Light Armor Plating Medium Reflective Plating Experimental Thermal Shield Improved System Shield Improved System Shield > --- WEAPON ----------- Compact HERF Cannon Plasma Lance > --- INVENTORY -------- Particle Reactor Biometal Heavy Treads Splice Drone Bay Gamma Bomb Array [Rating: 179] Favorites ----------- Power Enhanced Fission Core Engine Improved Deuterium Engine Power Core Enhanced Fission Core Reactor Cold Fusion Reactor Propulsion Combat Airjet Treads Centrium Heavy Treads Leg Aluminum Leg Hover Unit Combat Airjet Flight Unit Impulse Thruster Array Utility Advanced Signal Interpreter Device Advanced Sensor Array Storage Large Storage Unit Processor Advanced Signal Interpreter Hackware Hacking Suite Protection Centrium Medium Armor Plating Weapon Chainsword Energy Gun Arc Projector Energy Cannon Advanced Plasma Cannon Ballistic Gun Heavy Assault Rifle Ballistic Cannon Antimatter Cannon Launcher Shock Bomb Launcher Special Weapon Improved Remote Datajack Impact Weapon Impact Mace Slashing Weapon Chainsword Piercing Weapon Heavy Pick Special Melee Weapon Improved Datajack Build | -11 -10 -10 -9 -9 -8 -8 -7 -7 -7 -7 -6 -6 -6 -6 -6 -6 -6 -5 -5 -5 -5 -4 -4 -4 -4 -3 -2 -2 -2 -1 ------- Run | Scr Mat Min Mat Min Mat Gar Fac Low Low Dat Pro Fac Ext Cet Arc Hub Gar Fac Upp Upp Zhi Pro Fac Upp Upp Res Res Gar Res Acc Slots Evolved 18 | . . . 2 . 2 . 2 . . . . 2 . . . . . 2 . . . . 2 . . 2 2 . . 2 Power 1 | . . . . . . . . . . . . . . . . . . 1 . . . . . . . . . . . . Propulsion 5 | . . . 1 . . . 1 . . . . . . . . . . . . . . . 2 . . 1 . . . . Utility 12 | . . . 1 . 2 . 1 . . . . 2 . . . . . 1 . . . . . . . 1 2 . . 2 Weapon . | . . . . . . . . . . . . . . . . . . . . . . . . . . . . . . . Parts Attached 541 | 6 12 7 32 8 31 21 77 9 5 . 6 30 11 14 9 4 7 42 10 3 7 6 24 19 10 109 2 2 8 10 Power 41 | 1 1 . 1 . 2 1 3 . . . . 2 2 . . . 1 5 1 . 2 . . 3 . 15 . . 1 . Engine 10 | 1 1 . 1 . 2 1 1 . . . . . 1 . . . 1 1 . . . . . . . . . . . . Core 11 | . . . . . . . 1 . . . . 1 1 . . . . 4 1 . 1 . . 2 . . . . . . Reactor 20 | . . . . . . . 1 . . . . 1 . . . . . . . . 1 . . 1 . 15 . . 1 . Propulsion 92 | 2 2 2 9 . 7 2 20 1 . . . 7 1 1 . 1 2 2 . . . . 1 4 . 24 . . 2 2 Treads 49 | 2 2 2 9 . 7 2 10 . . . . . . . . . 2 2 . . . . 1 4 . 5 . . 1 . Leg 2 | . . . . . . . 2 . . . . . . . . . . . . . . . . . . . . . . . Wheel . | . . . . . . . . . . . . . . . . . . . . . . . . . . . . . . . Hover 19 | . . . . . . . 8 1 . . . 7 1 1 . 1 . . . . . . . . . . . . . . Flight 22 | . . . . . . . . . . . . . . . . . . . . . . . . . . 19 . . 1 2 Utility 232 | 1 5 1 7 6 8 3 26 4 3 . 2 16 4 6 7 1 3 25 6 2 3 3 18 8 6 43 2 1 5 7 Device 126 | . 3 . . 3 1 . 10 2 2 . 1 7 4 3 3 1 3 15 4 2 2 3 10 7 4 27 2 1 1 5 Storage 8 | 1 1 . 2 . . . . . . . . . . 1 . . . 2 . . . . 1 . . . . . . . Processor 20 | . . . . . . . 4 1 . . . 2 . 1 . . . 1 1 . 1 . 3 . . 4 . . 2 . Hackware 18 | . . . . . 1 1 4 . . . . 1 . . 2 . . 1 . . . . 3 1 . 1 . . 1 2 Protection 60 | . 1 1 5 3 6 2 8 1 1 . 1 6 . 1 2 . . 6 1 . . . 1 . 2 11 . . 1 . Artifact . | . . . . . . . . . . . . . . . . . . . . . . . . . . . . . . . Weapon 176 | 2 4 4 15 2 14 15 28 4 2 . 4 5 4 7 2 2 1 10 3 1 2 3 5 4 4 27 . 1 . 1 Energy Gun 6 | . 1 . . . . . . 1 . . . . 1 . . . . . . . . . . . . 3 . . . . Energy Cannon 11 | . . . . . . . . . . . . . . . . 2 1 . . . . 1 1 1 1 2 . 1 . 1 Ballistic Gun 32 | 2 2 3 11 1 6 . . . . . . . . . 1 . . . . . . . . . . 6 . . . . Ballistic Cannon 25 | . . . . . 2 . . . . . . . . . . . . 7 1 1 1 1 3 1 1 7 . . . . Launcher 30 | . 1 . 1 . 2 8 4 2 . . 2 1 1 1 . . . 2 . . . 1 . . 1 3 . . . . Special Weapon 10 | . . 1 . . . . . . . . . 1 1 1 . . . 1 1 . . . 1 1 1 1 . . . . Impact Weapon 2 | . . . . . . . . . . . . 1 . 1 . . . . . . . . . . . . . . . . Slashing Weapon 38 | . . . 3 1 4 7 15 1 1 . 2 2 1 1 . . . . . . . . . . . . . . . . Piercing Weapon 13 | . . . . . . . . . 1 . . . . 3 1 . . . 1 . 1 . . 1 . 5 . . . . Special Melee Weapon 9 | . . . . . . . 9 . . . . . . . . . . . . . . . . . . . . . . . Unidentified Prototypes 19 | . . . . 1 . . 1 . . . . 1 . 1 . . 1 3 . . 2 . . 1 . 8 . . . . Corrupted Parts 7 | . . 1 . . . . . . . . . . . . . . 2 . . . . . . . . 4 . . . . System Corruption 25 | . . 5 . . . . . . . . . . . . . . 12 . . . . . . . . 8 . . . . Parts Lost 66 | . 2 1 . . . 3 8 . . . . 6 . 1 . . . 2 . . . . 1 . . 36 . 1 2 3 Power 7 | . . . . . . 1 1 . . . . 1 . . . . . . . . . . . . . 3 . 1 . . Propulsion 17 | . . . . . . . 2 . . . . . . . . . . . . . . . . . . 15 . . . . Utility 31 | . . . . . . 2 4 . . . . 5 . 1 . . . 2 . . . . . . . 13 . . 2 2 Weapon 11 | . 2 1 . . . . 1 . . . . . . . . . . . . . . . 1 . . 5 . . . 1 Highest Loss Streak 11 | . 2 1 . . . 2 4 . . . . 2 . 1 . . . 1 . . . . 1 . . 11 . 1 1 2 Average Slot Usage (%) 90 | . 98 100 99 100 99 94 97 99 100 100 100 97 99 92 98 95 98 87 88 88 86 88 83 81 84 71 63 73 75 74 Engine 4 | . 14 14 11 11 9 8 5 . . . . . 1 6 6 6 6 2 . . . . . . . . . . . . Core 3 | . . . . . . . . . . . . 1 4 . . . . 8 11 11 10 11 10 10 10 1 . . . . Reactor 1 | . . . . . . . . 7 7 7 7 4 . . . . . . . . . . . . . 6 8 5 4 3 Treads 15 | . 27 28 33 33 27 27 15 . . . . . . . . . . 10 11 11 11 11 15 16 20 15 . . . . Hover 6 | . . . . . . . 13 30 30 30 30 25 26 26 26 26 25 . . . . . . . . . . . . . Device 7 | . 5 . . . 1 . 1 6 6 7 6 12 16 11 10 10 13 13 15 11 9 11 8 12 9 8 5 15 13 10 Storage 6 | . 14 14 11 11 9 9 7 7 7 7 7 6 6 7 6 6 6 5 5 5 5 5 5 5 5 3 . . . . Processor 9 | . . . . . . . 8 21 23 23 23 22 20 20 15 13 13 5 8 11 11 11 10 15 15 13 16 16 18 19 Hackware 4 | . . . . . 9 9 15 . . . . 1 2 . 9 13 13 10 2 . . . 6 . . 1 . . . 6 Protection 13 | . 7 14 21 21 25 21 8 8 7 7 7 6 6 6 8 8 6 15 18 23 23 23 14 10 14 9 12 12 12 10 Energy Cannon 1 | . . . . . . . . . . . . . . . . . 5 . . . . 3 . 5 5 2 . 1 4 2 Ballistic Gun 5 | . 26 27 21 21 14 . . . . . . . . . 1 . . . . . . . . . . 3 . . . . Ballistic Cannon 2 | . . . . . . . . . . . . . . . . . . 10 10 11 10 6 9 4 4 1 . . . . Slashing Weapon 3 | . . . . . 3 14 13 11 11 7 8 11 5 5 6 2 . . . . . . . . . . . . . . Naked Turns . | . . . . . . . . . . . . . . . . . . . . . . . . . . . . . . . Heaviest Build 197 | 10 24 29 46 46 49 48 49 52 52 42 52 50 48 48 50 53 55 110 124 124 128 128 158 154 155 197 46 54 58 55 Greatest Support 300 | 40 40 42 62 62 62 62 112 48 45 45 45 49 48 48 48 48 160 160 160 160 160 160 240 250 250 300 64 64 64 64 Greatest Overweight (x) 4 | . . . . . . . 1 1 1 . 1 1 . . 1 1 1 . . . . . . . . 4 . . . . Average Overweight (x) . | . . . . . . . . . . . . . . . . . . . . . . . . . . . . . . . Largest Inventory Capacity 25 | 8 10 10 15 15 15 15 15 15 15 15 15 15 15 15 15 15 15 20 20 20 20 20 25 25 25 25 5 5 5 5 Average Capacity 16 | 6 8 10 10 15 15 15 15 15 15 15 15 15 15 15 15 15 15 18 20 20 20 20 24 25 25 22 5 5 5 5 Most Carried 25 | 4 9 10 11 15 15 15 15 15 15 15 15 15 15 15 15 15 15 20 20 20 20 20 25 25 25 25 5 3 5 5 Average Carried 16 | 3 7 9 10 14 14 14 14 14 15 15 15 14 14 14 14 14 14 17 19 20 19 19 21 24 24 22 4 1 3 4 Final Capacity 25 | 8 10 10 15 15 15 15 15 15 15 15 15 15 15 15 15 15 15 20 20 20 20 20 25 25 25 5 5 5 5 5 Final Carried 25 | 4 9 10 11 15 15 15 15 15 15 15 15 15 15 15 14 15 14 19 20 20 20 19 25 25 25 5 3 1 4 5 Class Distribution -------------------- 58% | Scavenger-Mutant 20% | Mutant 8% | Machinist-Mutant 6% | Bothacker-Mutant 3% | Scout Dominant Class ---------------- Mutant | -10/Materials Mutant | -10/Mines Scavenger-Mutant | -9/Materials Mutant | -9/Mines Scavenger-Mutant | -8/Materials Scavenger-Mutant | -8/Garrison Bothacker-Mutant | -7/Factory Machinist-Mutant | -7/Lower Caves Machinist-Mutant | -7/Lower Caves Machinist-Mutant | -7/Data Miner Machinist-Mutant | -6/Proximity Caves Scout | -6/Factory Machinist-Mutant | -6/Extension Commander-Mutant | -6/Cetus Scavenger-Mutant | -6/Archives Scavenger-Mutant | -6/Hub_04(d) Scavenger-Mutant | -6/Garrison Scavenger-Mutant | -5/Factory Bothacker-Mutant | -5/Upper Caves Scavenger-Mutant | -5/Upper Caves Scavenger-Mutant | -5/Zhirov Scavenger-Mutant | -4/Proximity Caves Scavenger-Mutant | -4/Factory Scavenger-Mutant | -4/Upper Caves Scavenger-Mutant | -4/Upper Caves Scavenger-Mutant | -3/Research Scavenger-Mutant | -2/Research Scavenger-Mutant | -2/Garrison Scavenger-Mutant | -2/Research Scavenger-Mutant | -1/Access Resources | -11 -10 -10 -9 -9 -8 -8 -7 -7 -7 -7 -6 -6 -6 -6 -6 -6 -6 -5 -5 -5 -5 -4 -4 -4 -4 -3 -2 -2 -2 -1 ----------- Run | Scr Mat Min Mat Min Mat Gar Fac Low Low Dat Pro Fac Ext Cet Arc Hub Gar Fac Upp Upp Zhi Pro Fac Upp Upp Res Res Gar Res Acc Matter Collected 12281 | 260 303 157 720 110 630 585 807 90 110 . 41 413 143 227 324 75 30 1107 526 78 50 124 1867 519 310 2550 . . 31 94 Remotely . | . . . . . . . . . . . . . . . . . . . . . . . . . . . . . . . Salvage Created 17320 | . 658 269 1234 103 984 659 2018 442 198 . 139 833 427 86 174 . 70 640 221 . 126 43 1991 773 670 4021 . . 31 510 Parts 847 | . 41 19 79 7 69 37 84 15 4 . 8 34 22 12 14 . 3 30 4 . 1 8 75 26 19 200 . . 3 33 Haulers Intercepted 13 | . 2 . 3 . 3 . 1 . . . . . . . . . . 2 . . . . 2 . . . . . . . Recyclers Shooed 12 | . 1 1 . . . . 2 . . . . 1 . . . . . 1 . . . . 3 3 . . . . . . Parts Field Recycled . | . . . . . . . . . . . . . . . . . . . . . . . . . . . . . . . Retrieved Matter . | . . . . . . . . . . . . . . . . . . . . . . . . . . . . . . . Parts Self-Destructed 63 | . . . . . . . . 11 3 . 4 . . . . . . . 4 . 1 5 . 25 10 . . . . . Prevented 12 | . . . . . . . . 2 . . . . . . . . . . . . . 1 . 1 8 . . . . . Kills | -11 -10 -10 -9 -9 -8 -8 -7 -7 -7 -7 -6 -6 -6 -6 -6 -6 -6 -5 -5 -5 -5 -4 -4 -4 -4 -3 -2 -2 -2 -1 ------- Run | Scr Mat Min Mat Min Mat Gar Fac Low Low Dat Pro Fac Ext Cet Arc Hub Gar Fac Upp Upp Zhi Pro Fac Upp Upp Res Res Gar Res Acc Combat Hostiles Destroyed 336 | . 14 10 21 3 22 27 35 7 4 . 5 17 6 7 . . 1 13 6 . . 5 36 10 14 63 . . . 10 Melee 70 | . . . . . 1 3 32 4 . . . 10 5 . . . 1 . . . . . . 1 . 3 . . . 10 Guns 89 | . 11 10 19 3 18 . . . . . . . . . . . . . . . . . . . . 28 . . . . Cannons 82 | . . . . . . . . . . . . . . . . . . 7 6 . . 1 36 9 8 15 . . . . AOE 85 | . 3 . 2 . 3 21 3 3 4 . 5 4 . 7 . . . 6 . . . 4 . . 4 16 . . . . Classes Destroyed 23 | . 2 1 6 . . 2 6 1 . . . 1 . . . . . 1 . . . . . . . 3 . . . . Worker 4 | . . . . . . . 1 . . . . . . . . . . 2 . . . . . . . 1 . . . . Builder 5 | . . . 1 . . . . . . . . . . . . . . 1 . . . . 3 . . . . . . . Hauler 13 | . 2 . 3 . 3 . 1 . . . . . . . . . . 2 . . . . 2 . . . . . . . Recycler 10 | . . . 1 . . . 3 . . . . 1 . . . . . . . . . . 4 . . . . . . 1 Carrier 2 | . . . . . . . 1 . . . . . . . . . . . . . . . . . . 1 . . . . Minesweeper 2 | . . . . . . . . 1 . . . . . . . . . . . . . . . 1 . . . . . . Mechanic 1 | . . . 1 . . . . . . . . . . . . . . . . . . . . . . . . . . . Operator 8 | . . . 1 . . . 1 . . . . . . . 5 . . 1 . . . . . . . . . . . . Watcher 9 | . . . 2 . 2 . 1 . . . . . 2 . . . . . . . . . . . . . . . 1 1 Swarmer 112 | . . 6 3 3 7 12 6 7 4 . 3 7 . 7 . . . . . . . 5 9 . 5 18 . . . 10 Saboteur 1 | . . . . . . . . . . . . . . . . . . 1 . . . . . . . . . . . . Grunt 103 | . 14 4 12 . 9 12 12 . . . 2 3 2 . . . . 5 2 . . . 9 6 4 7 . . . . Brawler 2 | . . . . . . 1 . . . . . . . . . . . . . . . . . . . 1 . . . . Duelist 5 | . . . . . . 1 1 . . . . 1 . . . . . 1 1 . . . . . . . . . . . Protector 1 | . . . . . . . 1 . . . . . . . . . . . . . . . . . . . . . . . Sentry 34 | . . . 6 . 6 1 4 . . . . 1 3 . . . 1 1 . . . . 4 1 1 5 . . . . Demolisher 7 | . . . . . . . . . . . . . . . . . . . . . . . . . . 7 . . . . Specialist 2 | . . . . . . . 2 . . . . . . . . . . . . . . . . . . . . . . . Hunter 21 | . . . . . . . 3 . . . . . . . . . . 3 3 . . . 6 . 2 4 . . . . Programmer 28 | . . . . . . . 6 . . . . 4 1 . . . . 2 . . . . 8 2 2 3 . . . . Behemoth 3 | . . . . . . . . . . . . 1 . . . . . . . . . . . 1 . 1 . . . . Striker 15 | . . . . . . . . . . . . . . . . . . . . . . . . . . 15 . . . . Executioner 2 | . . . . . . . . . . . . . . . . . . . . . . . . . . 2 . . . . Decomposer 1 | . . . . . . . . 1 . . . . . . . . . . . . . . . . . . . . . . Packrat 2 | . . . . . . . . . . . . . . . . . . . . . . . . 2 . . . . . . Thug 1 | . . . . 1 . . . . . . . . . . . . . . . . . . . . . . . . . . Best Kill Streak 15 | . 4 6 4 3 7 7 7 4 4 . 3 5 2 7 1 . 1 7 3 . . 5 15 4 7 12 . . 1 6 Combat Bots Only 11 | . 4 6 4 3 6 7 6 4 4 . 3 5 2 7 . . 1 5 3 . . 5 9 4 7 11 . . . 6 Max Kills in Single Turn 5 | . 3 2 2 1 2 4 2 3 4 . 3 4 1 5 1 . 1 3 1 . . 2 2 1 3 5 . . 1 1 Gunslinging 1 | . . 1 1 . . . . . . . . . . . . . . . . . . . . . . . . . . . Exploded 5 | . 3 . 1 . 2 4 2 3 4 . 3 4 . 5 . . . 2 . . . 2 . . 3 5 . . . . Melee 1 | . . . . . 1 1 1 1 . . . 1 1 . . . 1 . . . . . . 1 . 1 . . . 1 Uniques/NPCs Destroyed . | . . . . . . . . . . . . . . . . . . . . . . . . . . . . . . . Combat | -11 -10 -10 -9 -9 -8 -8 -7 -7 -7 -7 -6 -6 -6 -6 -6 -6 -6 -5 -5 -5 -5 -4 -4 -4 -4 -3 -2 -2 -2 -1 -------- Run | Scr Mat Min Mat Min Mat Gar Fac Low Low Dat Pro Fac Ext Cet Arc Hub Gar Fac Upp Upp Zhi Pro Fac Upp Upp Res Res Gar Res Acc Damage Taken 26367 | . 642 538 476 51 1012 888 2077 198 75 . 154 1666 293 240 . 63 128 953 197 . . 135 2809 591 795 10635 . 454 229 1068 Core 2448 | . 44 95 28 . 61 113 314 36 . . 43 308 79 31 . . 13 77 7 . . 12 158 13 50 734 . 93 . 139 Absorbed by Shields 2044 | . . . . . . 132 284 . . . . . . 102 . . 19 84 71 . . 25 547 85 277 418 . . . . Reduced by Siege Mode 277 | . . . . . . . . . . . . . . . . . . 3 30 . . . 160 52 28 4 . . . . Core Remaining (%) 71 | 100 . 44 . 93 . 68 . . . . 43 . . . . . 49 . . . . 90 . . 80 34 . . 93 91 Volleys Fired 762 | . 44 20 65 5 57 37 5 10 2 . 3 2 9 7 62 1 2 36 20 . . 14 123 38 40 158 . 2 . . Largest 2 | . 2 2 2 2 2 1 1 1 1 . 1 1 1 1 1 1 1 2 2 . . 1 2 2 2 2 . 1 . . Hottest 174 | . 85 100 50 46 46 36 36 55 45 . 45 39 55 43 33 90 90 93 93 . . 98 106 159 159 174 . 113 . . Shots Fired 1247 | . 86 37 128 10 110 37 5 10 2 . 3 2 9 7 61 1 2 61 36 . . 14 219 61 61 283 . 2 . . Gun 614 | . 84 34 126 10 106 . . 9 . . . . 8 . 61 . . . . . . . . . . 176 . . . . Cannon 524 | . . . . . 1 . . . . . . . . . . 1 2 52 35 . . 12 216 57 52 94 . 2 . . Launcher 92 | . 2 . 2 . 3 37 5 1 2 . 3 1 . 6 . . . 7 . . . 2 . . 9 12 . . . . Special 17 | . . 3 . . . . . . . . . 1 1 1 . . . 2 1 . . . 3 4 . 1 . . . . Kinetic 970 | . 82 34 126 10 107 . . . . . . . . . 61 . . 51 35 . . 1 194 23 21 225 . . . . Thermal 154 | . 2 3 . . . . . . . . . . . . . 1 2 1 . . . 11 22 34 31 45 . 2 . . Explosive 50 | . 2 . . . 3 22 5 1 2 . 3 1 . 2 . . . 7 . . . 2 . . . . . . . . Electromagnetic 59 | . . . 2 . . 15 . 9 . . . . 8 4 . . . . . . . . . . 9 12 . . . . Robot Hit Streak 63 | . 9 9 25 9 18 7 3 4 2 . 1 2 3 3 3 . . 12 13 . . 15 33 34 47 63 . . . . Robot Miss Streak 7 | . 2 3 3 . 2 2 . 3 7 . 7 . 1 . 3 . . 2 2 . . . 4 1 . 3 . . . . Penetration Max 2 | . . . . . . . . . . . . . . . 1 . . . . . . . 2 . . 2 . . . . Secondary Targets 12 | . . 5 2 . 1 . . . . . . . . . . . . . . . . . . . . 4 . . . . Max Gunslinging Chain 1 | . . 1 1 . 1 . . . . . . . . . . . . . . . . . . . . 1 . . . . Shots Hit Robots 1206 | . 65 23 91 11 94 25 134 18 5 . 2 63 31 2 33 . 1 43 29 . 1 3 173 49 40 249 . . 2 19 Core Hits 636 | . 29 14 39 4 43 36 52 16 8 . 8 21 11 12 15 . 1 48 13 . 1 7 66 23 21 132 . . 1 15 Critical Kills 58 | . 1 . 1 . 1 . . . . . . . . . 1 . . . . . . . 20 . . 34 . . . . Critical Parts Destroyed 67 | . . . 1 . . . . . . . . 1 1 . 4 . . . . . . . 30 . . 30 . . . . Critical Strikes 175 | . 1 . 2 . 1 . 5 . . . . 5 1 . 5 . . 4 . . . . 56 3 3 89 . . . . Destroy 139 | . 1 . 2 . 1 . . . . . . . . . 5 . . . . . . . 52 . . 78 . . . . Blast 25 | . . . . . . . . . . . . . . . . . . 4 . . . . 4 3 3 11 . . . . Smash 2 | . . . . . . . . . . . . 1 1 . . . . . . . . . . . . . . . . . Sever 9 | . . . . . . . 5 . . . . 4 . . . . . . . . . . . . . . . . . . Melee Attacks 509 | . . . 9 4 8 10 182 14 8 . 19 101 42 10 4 8 4 . . . 1 . . 3 . 21 . 2 12 47 Impact 25 | . . . . . . . . . . . . 11 9 5 . . . . . . . . . . . . . . . . Slashing 349 | . . . 9 4 8 10 170 14 4 . 5 90 33 1 . 1 . . . . . . . . . . . . . . Piercing 123 | . . . . . . . . . 4 . 14 . . 4 4 7 4 . . . 1 . . 3 . 21 . 2 12 47 Sneak Attacks 51 | . . . . 3 1 . 29 . . . . 6 4 . 1 . 1 . . . . . . 2 . 3 . . . 1 Combat Hostiles 12 | . . . . . . . 4 . . . . 4 1 . . . 1 . . . . . . 1 . 1 . . . . Follow-up Attacks 32 | . . . . . 1 1 14 1 1 . . 7 6 . . . . . . . . . . . . 1 . . . . Damage Inflicted 43476 | . 1237 389 1586 450 1934 2524 6367 1011 722 . 373 3099 1362 555 962 . 105 2675 945 34 75 451 5653 1820 1788 6333 . . 121 905 Guns 6381 | . 860 384 1478 132 1297 . . 57 . . . . 52 . 796 . . . . . . . . . . 1325 . . . . Cannons 13096 | . . . . . . . . . . . . . . . . . . 1358 945 . . 21 5546 1571 1296 2359 . . . . Explosions 9261 | . 371 . 68 . 356 2252 425 163 295 . 373 309 . 520 . . . 1294 . . . 430 . . 492 1913 . . . . Melee 14468 | . . . . 318 267 265 5942 791 427 . . 2790 1310 35 166 . 105 . . . 75 . . 219 . 732 . . 121 905 Ramming 270 | . 6 5 40 . 14 7 . . . . . . . . . . . 23 . 34 . . 107 30 . 4 . . . . Kinetic 15952 | . 826 384 1478 132 1297 . . . . . . . . . 796 . . 1358 945 . . 21 4911 649 602 2553 . . . . Thermal 4255 | . 204 . . . . . . . . . . . . . . . . . . . . . 635 922 694 1800 . . . . Explosive 6474 | . 201 . . . 356 1720 425 163 295 . 373 298 . 400 . . . 1294 . . . 430 . . . 519 . . . . Electromagnetic 2057 | . . . 68 . . 532 . 57 . . . 11 52 120 . . . . . . . . . . 492 725 . . . . Impact 675 | . . . . . . . . . . . . 380 295 . . . . . . . . . . . . . . . . . Slashing 11102 | . . . . 318 267 265 5942 791 94 . . 2410 1015 . . . . . . . . . . . . . . . . . Piercing 2691 | . . . . . . . . . 333 . . . . 35 166 . 105 . . . 75 . . 219 . 732 . . 121 905 Highest Corruption 16 | . . 6 . . . . 3 . . . . 11 9 4 4 1 12 2 2 2 2 2 12 12 1 16 . . . . Average Corruption 3 | . . 1 . . . . 1 . . . . 7 6 4 2 1 2 1 2 2 2 2 7 7 1 5 . . . . Corruption Purged 46 | . . . . . . . 5 . . . . 7 5 . 4 . 1 . . . . . . 12 1 11 . . . . Effects 195 | . . . . . . . 9 . . . . 35 18 7 13 1 1 6 11 5 4 8 25 19 . 33 . . . . Message Errors 61 | . . . . . . . 5 . . . . 11 2 1 7 1 . 3 6 1 1 4 9 4 . 6 . . . . Matter Fused 33 | . . . . . . . 1 . . . . 7 5 2 3 . 1 . . . . . 5 2 . 7 . . . . Heat Flow Errors 21 | . . . . . . . 1 . . . . 1 2 2 1 . . . 1 3 1 1 3 1 . 4 . . . . Energy Discharges 33 | . . . . . . . 2 . . . . 6 7 1 . . . 3 2 . 1 2 2 4 . 3 . . . . Parts Rejected 2 | . . . . . . . . . . . . 1 . . . . . . . . . . . . . 1 . . . . Data Loss (minor) 20 | . . . . . . . . . . . . 4 2 1 1 . . . 2 1 1 1 4 3 . . . . . . Data Loss (major) 10 | . . . . . . . . . . . . 5 . . . . . . . . . . 2 1 . 2 . . . . Misfires 1 | . . . . . . . . . . . . . . . . . . . . . . . . . . 1 . . . . Alerts 1 | . . . . . . . . . . . . . . . . . . . . . . . . 1 . . . . . . Misdirections 10 | . . . . . . . . . . . . . . . . . . . . . . . . 3 . 7 . . . . Weapon Failures 3 | . . . . . . . . . . . . . . . 1 . . . . . . . . . . 2 . . . . Overload Shots . | . . . . . . . . . . . . . . . . . . . . . . . . . . . . . . . Overflow Damage 3016 | . 162 . 1 92 13 92 839 220 260 . 5 266 394 29 . . . 58 33 27 . 40 221 65 121 54 . . . 24 Projectiles 425 | . . . . . . . . . . . . . . . . . . 20 33 . . . 201 62 56 53 . . . . Explosions 434 | . 162 . 1 . . 92 . . 1 . 5 . . 29 . . . 38 . . . 40 . . 65 1 . . . . Melee 2157 | . . . . 92 13 . 839 220 259 . . 266 394 . . . . . . 27 . . 20 3 . . . . . 24 Knockbacks 77 | . . . 1 . . . . . . . . 1 . . . . . 6 8 1 . . 37 5 6 12 . . . . Impact 3 | . . . 1 . . . . . . . . 1 . . . . . . . 1 . . . . . . . . . . Kinetic 69 | . . . . . . . . . . . . . . . . . . 5 8 . . . 33 5 6 12 . . . . Secondary 5 | . . . . . . . . . . . . . . . . . . 1 . . . . 4 . . . . . . . Self-Inflicted Damage 783 | . 144 . 1 . 15 362 36 15 . . 22 31 . 4 . . . . . . . . . . 3 150 . . . . Shots 29 | . 4 . 1 . 1 11 1 1 . . 1 1 . 1 . . . . . . . . . . 1 6 . . . . Rammed 30 | . 3 2 9 . . 2 . . . . . . . . . . . 3 . 1 . . 6 3 . 1 . . . . Targets Rammed 31 | . 3 2 9 . 1 2 . . . . . . . . . . . 3 . 1 . . 6 3 . 1 . . . . Kicked . | . . . . . . . . . . . . . . . . . . . . . . . . . . . . . . . Crushed 1 | . . . . . 1 . . . . . . . . . . . . . . . . . . . . . . . . . Highest Temperature 458 | . 22 81 54 30 96 42 282 1 . . . 262 201 158 195 42 42 257 360 276 144 117 458 284 308 345 . 98 . . Average Temperature 65 | . 8 26 15 15 27 12 112 1 . . . 121 59 62 110 24 25 89 105 113 84 45 76 86 87 86 . 56 . . Received Heat Transfer 3657 | . 273 102 156 . 378 284 508 . . . . 222 111 9 . 9 33 153 50 . . 12 402 128 95 606 . 18 54 54 Effects 1 | . . . . . . . . . . . . . . . . . . 1 . . . . . . . . . . . . Energy Bleed 1 | . . . . . . . . . . . . . . . . . . 1 . . . . . . . . . . . . Siege Activations 19 | . . . . . . . . . . . . . . . . . . 2 2 . . . 9 3 2 1 . . . . Total Turns 564 | . . . . . . . . . . . . . . . . . . 78 65 . . . 249 115 39 18 . . . . Longest Duration 65 | . . . . . . . . . . . . . . . . . . 65 51 . . . 56 51 22 18 . . . . Robots Corrupted 6 | . . . . . . 3 . . . . . . . . . . . . . . . . . . 2 1 . . . . Combat Hostiles 6 | . . . . . . 3 . . . . . . . . . . . . . . . . . . 2 1 . . . . Parts Fried 12 | . . . . . . 3 . . . . . 2 1 . . . . . . . . . . . 3 3 . . . . Impact Corruptions 19 | . . . . . . . . . . . . 7 6 . . . . . . 3 . . 2 1 . . . . . . Robots Melted . | . . . . . . . . . . . . . . . . . . . . . . . . . . . . . . . Combat Hostiles . | . . . . . . . . . . . . . . . . . . . . . . . . . . . . . . . Parts Melted 11 | . . . . . . 1 . . . . . . 1 . . . . . . . . . 3 4 2 . . . . . Heat Transferred 4975 | . 174 . . . . . . . . . . . . . . . . . . . . . 950 1350 1000 1501 . . . . Parts Sabotaged . | . . . . . . . . . . . . . . . . . . . . . . . . . . . . . . . Parts Stolen . | . . . . . . . . . . . . . . . . . . . . . . . . . . . . . . . Parts Stripped . | . . . . . . . . . . . . . . . . . . . . . . . . . . . . . . . Power Chain Reactions 6 | . . . . . . . . . . . . 1 . . . . . . . . . . . . . 5 . . . . Missiles Intercepted . | . . . . . . . . . . . . . . . . . . . . . . . . . . . . . . . Alert | -11 -10 -10 -9 -9 -8 -8 -7 -7 -7 -7 -6 -6 -6 -6 -6 -6 -6 -5 -5 -5 -5 -4 -4 -4 -4 -3 -2 -2 -2 -1 ------- Run | Scr Mat Min Mat Min Mat Gar Fac Low Low Dat Pro Fac Ext Cet Arc Hub Gar Fac Upp Upp Zhi Pro Fac Upp Upp Res Res Gar Res Acc Peak Influence 1961 | . 192 180 310 70 413 904 1482 . . . . 850 582 1037 654 614 1250 1203 . . . . 783 . . 1961 1100 692 615 1115 Initial 1100 | . . 3 . . . 72 474 . . . . 94 416 288 414 67 429 655 . . . . 28 . . . 1100 675 389 362 Average 410 | . 36 50 126 18 114 535 494 . . . . 229 478 580 442 270 905 703 . . . . 406 . . 627 1056 674 472 715 Maximum Alert Level 5 | . . . 1 . 2 3 4 . . . . 3 2 3 2 2 4 4 . . . . 3 . . 5 4 2 2 4 Low Security (%) 37 | 100 100 100 86 100 68 12 14 . . . . 67 . . 4 51 . . . . . . 24 . . 13 . . . . Level 1 17 | . . . 13 . 31 10 21 . . . . 13 19 30 31 17 . 19 . . . . 19 . . 32 . . 17 20 Level 2 26 | . . . . . . 51 50 . . . . 4 80 37 63 30 26 32 . . . . 36 . . 28 . 100 82 22 Level 3 11 | . . . . . . 24 6 . . . . 13 . 31 . . 49 35 . . . . 19 . . 6 21 . . 55 Level 4 4 | . . . . . . . 6 . . . . . . . . . 24 11 . . . . . . . 4 78 . . 1 Level 5 1 | . . . . . . . . . . . . . . . . . . . . . . . . . . 14 . . . . High Security . | . . . . . . . . . . . . . . . . . . . . . . . . . . . . . . . Max Security . | . . . . . . . . . . . . . . . . . . . . . . . . . . . . . . . Squads Dispatched 71 | . 5 . 5 . 4 . 16 . . . . 8 . 1 . 4 . 7 . . . . 12 . . 4 2 . 1 2 Investigation 27 | . 5 . 3 . 1 . 6 . . . . 5 . 1 . . . 1 . . . . 3 . . 1 . . . 1 Extermination 18 | . . . . . . . 5 . . . . 3 . . . 1 . 3 . . . . 4 . . . 1 . . 1 Reinforcement 17 | . . . 2 . 1 . 2 . . . . . . . . 3 . 1 . . . . 4 . . 3 . . 1 . Assault 6 | . . . . . . . 2 . . . . . . . . . . 2 . . . . 1 . . . 1 . . . Garrison 3 | . . . . . 2 . 1 . . . . . . . . . . . . . . . . . . . . . . . Intercept . | . . . . . . . . . . . . . . . . . . . . . . . . . . . . . . . Construction Impeded 2 | . . . . . . . . . . . . . . . . . . . . . . . 2 . . . . . . . Haulers Reinforced 3 | . . . . . . . . . . . . . . . . . . . . . . . 2 . . 1 . . . . Cargo Convoy Interrupts 2 | . . . . . . . 1 . . . . . . . . . . 1 . . . . . . . . . . . . Stealth | -11 -10 -10 -9 -9 -8 -8 -7 -7 -7 -7 -6 -6 -6 -6 -6 -6 -6 -5 -5 -5 -5 -4 -4 -4 -4 -3 -2 -2 -2 -1 --------- Run | Scr Mat Min Mat Min Mat Gar Fac Low Low Dat Pro Fac Ext Cet Arc Hub Gar Fac Upp Upp Zhi Pro Fac Upp Upp Res Res Gar Res Acc Distress Signals 26 | . 3 . 3 . 1 . 2 . . . . 1 . 2 . . . 1 . . . . 6 . . 4 . . 1 2 Communications Jammed 3 | . . . . . . . . . . . . . 3 . . . . . . . . . . . . . . . . . Distress Signals 3 | . . . . . . . . . . . . . 3 . . . . . . . . . . . . . . . . . Times Spotted 676 | . 20 13 35 3 30 31 76 7 5 . 9 35 12 22 32 9 11 37 5 . . 8 55 16 16 121 . 9 16 43 Peak Tracking Total 17 | . 8 15 7 3 5 9 9 3 4 . 6 8 4 8 . 3 2 7 2 . . 5 6 4 8 11 1 10 7 17 Tactical Retreats 65 | . 1 . . . 1 7 10 . 1 . 2 3 1 1 . . 1 4 . . . 1 3 1 1 16 . 1 3 7 Traps | -11 -10 -10 -9 -9 -8 -8 -7 -7 -7 -7 -6 -6 -6 -6 -6 -6 -6 -5 -5 -5 -5 -4 -4 -4 -4 -3 -2 -2 -2 -1 ------- Run | Scr Mat Min Mat Min Mat Gar Fac Low Low Dat Pro Fac Ext Cet Arc Hub Gar Fac Upp Upp Zhi Pro Fac Upp Upp Res Res Gar Res Acc Traps Triggered 21 | . . 1 2 . . 2 4 . . . . 2 1 . . . 2 6 . . . . . . . 1 . . . . Indirectly . | . . . . . . . . . . . . . . . . . . . . . . . . . . . . . . . Trap Hack Attempts 18 | . . . . . . . 18 . . . . . . . . . . . . . . . . . . . . . . . Triggered . | . . . . . . . . . . . . . . . . . . . . . . . . . . . . . . . Disarmed 1 | . . . . . . . 1 . . . . . . . . . . . . . . . . . . . . . . . Reprogrammed 15 | . 10 . . . . . 5 . . . . . . . . . . . . . . . . . . . . . . . Reused 8 | . 1 . . . . . 5 . . . . . . . . . . . . . . 1 . 1 . . . . . . Traps Extracted 4 | . . . . 4 . . . . . . . . . . . . . . . . . . . . . . . . . . Installed 4 | . . . . 1 . . . . . . . . . . . . . . . . . 1 . 2 . . . . . . Triggered 8 | . 1 . . . . . 5 . . . . . . . . . . . . . . 1 . 1 . . . . . . Machines | -11 -10 -10 -9 -9 -8 -8 -7 -7 -7 -7 -6 -6 -6 -6 -6 -6 -6 -5 -5 -5 -5 -4 -4 -4 -4 -3 -2 -2 -2 -1 ---------- Run | Scr Mat Min Mat Min Mat Gar Fac Low Low Dat Pro Fac Ext Cet Arc Hub Gar Fac Upp Upp Zhi Pro Fac Upp Upp Res Res Gar Res Acc Machines Disabled 38 | . 2 . 1 . 2 3 . . . . . 5 . . 4 2 4 6 1 . . . 3 . 1 3 . . . 1 Max in Single Turn 4 | . 2 . 1 . 2 1 . . . . . 4 . . 1 1 1 2 1 . . . 1 . 1 1 . . . 1 Garrison Access 9 | . . . . . . . 2 . . . . . . . . . . 2 . . . . . . . 3 . . 1 1 Garrison Relay 4 | . . . . . . 2 . . . . . . . . . . 2 . . . . . . . . . . . . . Network Hub 1 | . . . . . . . . . . . . . . . . 1 . . . . . . . . . . . . . . Machines Sabotaged . | . . . . . . . . . . . . . . . . . . . . . . . . . . . . . . . Garrisons Compromised . | . . . . . . . . . . . . . . . . . . . . . . . . . . . . . . . Overloaded Fab Kills 3 | . . . . . . . . . . . . 3 . . . . . . . . . . . . . . . . . . Fab Network Shutdowns 3 | . . . . . . . 1 . . . . 1 . . . . . . . . . . . . . 1 . . . . Hacking | -11 -10 -10 -9 -9 -8 -8 -7 -7 -7 -7 -6 -6 -6 -6 -6 -6 -6 -5 -5 -5 -5 -4 -4 -4 -4 -3 -2 -2 -2 -1 --------- Run | Scr Mat Min Mat Min Mat Gar Fac Low Low Dat Pro Fac Ext Cet Arc Hub Gar Fac Upp Upp Zhi Pro Fac Upp Upp Res Res Gar Res Acc Machines Accessed 124 | . 11 1 8 1 11 . 28 . . 4 . 10 7 2 1 1 . 7 . . 4 . 7 1 . 13 1 . 2 4 Terminals 56 | . 8 . 4 . 7 . 11 . . . . 3 6 2 . . . 3 . . . . 4 1 . 3 . . 1 3 Fabricators 10 | . . . . . . . 4 . . . . 3 . . . . . 1 . . . . 1 . . 1 . . . . Repair Stations 14 | . 1 . 2 . 1 . 3 . . . . 1 . . . . . 1 . . . . 1 . . 4 . . . . Recycling Units 15 | . 2 . . . 1 . 5 . . . . 3 1 . . . . . . . . . 1 . . 2 . . . . Scanalyzers 6 | . . . 2 . 1 . 2 . . . . . . . . . . . . . . . . . . 1 . . . . Garrison Access 12 | . . . . . 1 . 3 . . . . . . . . 1 . 2 . . . . . . . 2 1 . 1 1 Total Hacks 427 | . 39 1 24 1 45 . 82 . . 29 . 33 25 6 1 1 . 34 . . 17 . 25 1 . 41 2 . 5 15 Successful 247 | . 19 1 15 1 32 . 46 . . 29 . 17 11 1 1 1 . 12 . . 17 . 11 1 . 22 1 . 4 5 Failed 179 | . 19 . 9 . 13 . 36 . . . . 16 14 5 . . . 22 . . . . 14 . . 19 1 . 1 10 Catastrophic 31 | . 3 . 2 . 1 . 5 . . . . 3 2 2 . . . 4 . . . . 3 . . 2 1 . . 3 Database Lockouts 1 | . 1 . . . . . . . . . . . . . . . . . . . . . . . . . . . . . Manual 158 | . 13 . 10 . 18 . 39 . . . . 9 17 1 . . . 19 . . . . 11 . . 8 1 . 2 10 Terminals 194 | . 29 . 12 . 24 . 32 . . . . 6 23 6 . . . 20 . . . . 13 1 . 10 . . 4 14 Fabricators 49 | . . . . . . . 18 . . . . 12 . . . . . 5 . . . . 7 . . 7 . . . . Repair Stations 54 | . 5 . 7 . 8 . 8 . . . . 8 . . . . . 3 . . . . 3 . . 12 . . . . Recycling Units 33 | . 5 . . . 2 . 9 . . . . 7 2 . . . . . . . . . 2 . . 6 . . . . Scanalyzers 23 | . . . 5 . 9 . 5 . . . . . . . . . . . . . . . . . . 4 . . . . Garrison Access 25 | . . . . . 2 . 10 . . . . . . . . 1 . 6 . . . . . . . 2 2 . 1 1 Terminal Hacks 103 | . 13 1 1 1 12 . 11 . . 29 . . 5 1 1 . . 3 . . 17 . 2 1 . 2 . . 2 1 Record 19 | . . . . . . . . . . 11 . . . 1 1 . . . . . 5 . . 1 . . . . . . Part Schematic 13 | . . . . . . . 2 . . 7 . . . . . . . . . . 4 . . . . . . . . . Robot Schematic 8 | . . . . . . . . . . 8 . . . . . . . . . . . . . . . . . . . . Robot Analysis 7 | . 2 . . . 1 . . . . . . . . . . . . . . . 4 . . . . . . . . . Prototype ID Bank 13 | . 3 . . . 2 . . . . 3 . . . . . . . . . . 4 . . . . . . . 1 . Open Door 3 | . . 1 . 1 . . . . . . . . . . . . . . . . . . . . . . . . . 1 Level Access Points 1 | . . . . . . . . . . . . . . . . . . . . . . . . . . . . . 1 . Branch Access Points 4 | . . . . . 1 . 1 . . . . . . . . . . 1 . . . . 1 . . . . . . . Machine Index 1 | . . . . . . . 1 . . . . . . . . . . . . . . . . . . . . . . . Repair Station Index 1 | . . . . . . . . . . . . . . . . . . . . . . . . . . 1 . . . . Garrison Index 1 | . . . . . 1 . . . . . . . . . . . . . . . . . . . . . . . . . Alert Level 1 | . 1 . . . . . . . . . . . . . . . . . . . . . . . . . . . . . Unreport Threat 12 | . 2 . 1 . 3 . 3 . . . . . 1 . . . . 2 . . . . . . . . . . . . Locate Traps 4 | . 1 . . . . . 1 . . . . . 2 . . . . . . . . . . . . . . . . . Reprogram Traps 2 | . 2 . . . . . . . . . . . . . . . . . . . . . . . . . . . . . Recall Investigation 2 | . 2 . . . . . . . . . . . . . . . . . . . . . . . . . . . . . Recall Reinforcements 1 | . . . . . . . . . . . . . . . . . . . . . . . 1 . . . . . . . Recall Assault 1 | . . . . . . . 1 . . . . . . . . . . . . . . . . . . . . . . . Zone Layout 9 | . . . . . 4 . 2 . . . . . 2 . . . . . . . . . . . . 1 . . . . Fabricator Hacks 20 | . . . . . . . 9 . . . . 3 . . . . . . . . . . 4 . . 4 . . . . Load Schematic 9 | . . . . . . . 4 . . . . 2 . . . . . . . . . . 1 . . 2 . . . . Build 11 | . . . . . . . 5 . . . . 1 . . . . . . . . . . 3 . . 2 . . . . Repair Station Hacks 40 | . 4 . 6 . 8 . 6 . . . . 6 . . . . . 2 . . . . 1 . . 7 . . . . Scan Component 21 | . 2 . 3 . 4 . 4 . . . . 3 . . . . . 1 . . . . 1 . . 3 . . . . Repair 18 | . 2 . 3 . 4 . 2 . . . . 3 . . . . . 1 . . . . . . . 3 . . . . Refit 1 | . . . . . . . . . . . . . . . . . . . . . . . . . . 1 . . . . Recycling Unit Hacks 9 | . 1 . . . . . 2 . . . . 3 1 . . . . . . . . . 1 . . 1 . . . . Retrieve Components 9 | . 1 . . . . . 2 . . . . 3 1 . . . . . . . . . 1 . . 1 . . . . Scanalyzer 18 | . . . 4 . 9 . 3 . . . . . . . . . . . . . . . . . . 2 . . . . Insert Component 9 | . . . 2 . 4 . 2 . . . . . . . . . . . . . . . . . . 1 . . . . Analyze 9 | . . . 2 . 5 . 1 . . . . . . . . . . . . . . . . . . 1 . . . . Garrison Access Hacks 14 | . . . . . 1 . 3 . . . . . . . . 1 . 4 . . . . . . . 2 1 . 1 1 Unlock Access 3 | . . . . . 1 . . . . . . . . . . 1 . . . . . . . . . . 1 . . . Seal Access 8 | . . . . . . . 2 . . . . . . . . . . 2 . . . . . . . 2 . . 1 1 Coupler Status 3 | . . . . . . . 1 . . . . . . . . . . 2 . . . . . . . . . . . . Unauthorized Hacks 43 | . 1 . 4 . 2 . 12 . . . . 5 5 . . . . 3 . . . . 3 . . 4 . . 1 3 Terminals 24 | . . . 3 . 1 . 3 . . . . 2 5 . . . . 1 . . . . 2 . . 3 . . 1 3 Track 2 | . . . . . . . . . . . . . 2 . . . . . . . . . . . . . . . . . Assimilate 1 | . . . 1 . . . . . . . . . . . . . . . . . . . . . . . . . . . Botnet 18 | . . . 2 . 1 . 2 . . . . 2 2 . . . . 1 . . . . 2 . . 3 . . 1 2 Disrupt 2 | . . . . . . . 1 . . . . . 1 . . . . . . . . . . . . . . . . . Sabotage 1 | . . . . . . . . . . . . . . . . . . . . . . . . . . . . . . 1 Fabricators 11 | . . . . . . . 6 . . . . 2 . . . . . 1 . . . . 1 . . 1 . . . . Prioritize 2 | . . . . . . . 2 . . . . . . . . . . . . . . . . . . . . . . . Siphon 6 | . . . . . . . 3 . . . . 1 . . . . . . . . . . 1 . . 1 . . . . Haulers 2 | . . . . . . . 1 . . . . . . . . . . 1 . . . . . . . . . . . . Overload 1 | . . . . . . . . . . . . 1 . . . . . . . . . . . . . . . . . . Repair Stations 1 | . . . 1 . . . . . . . . . . . . . . . . . . . . . . . . . . . Mechanics 1 | . . . 1 . . . . . . . . . . . . . . . . . . . . . . . . . . . Recycling Units 4 | . 1 . . . . . 2 . . . . 1 . . . . . . . . . . . . . . . . . . Mask 3 | . . . . . . . 2 . . . . 1 . . . . . . . . . . . . . . . . . . Tunnel 1 | . 1 . . . . . . . . . . . . . . . . . . . . . . . . . . . . . Scanalyzers . | . . . . . . . . . . . . . . . . . . . . . . . . . . . . . . . Garrison Access 3 | . . . . . 1 . 1 . . . . . . . . . . 1 . . . . . . . . . . . . Reprogram 3 | . . . . . 1 . 1 . . . . . . . . . . 1 . . . . . . . . . . . . Data Cores Recovered 1 | . . . . . . . . . . . . . . . . . . 1 . . . . . . . . . . . . Used 1 | . . . . . . . . . . . . . . . . . . 1 . . . . . . . . . . . . Hacking Detections 97 | . 10 . 8 . 10 . 26 . . . . 8 6 2 . . . 5 . . . . 7 . . 10 1 . 1 3 Full Trace Events 21 | . 4 . 2 . 1 . 6 . . . . 3 . 1 . . . . . . . . 3 . . 1 . . . . Feedback Events 2 | . . . . . . . 1 . . . . 1 . . . . . . . . . . . . . . . . . . Corruption 2 | . . . . . . . 1 . . . . 1 . . . . . . . . . . . . . . . . . . Feedback Blocked . | . . . . . . . . . . . . . . . . . . . . . . . . . . . . . . . Robot Schematics Acquired 8 | . . . . . . . . . . 8 . . . . . . . . . . . . . . . . . . . . Robots Built . | . . . . . . . . . . . . . . . . . . . . . . . . . . . . . . . Matter . | . . . . . . . . . . . . . . . . . . . . . . . . . . . . . . . Time . | . . . . . . . . . . . . . . . . . . . . . . . . . . . . . . . Total Robot Build Rating . | . . . . . . . . . . . . . . . . . . . . . . . . . . . . . . . Part Schematics Acquired 21 | . . . 2 . 4 . 3 . . 7 . . . . . . . . . . 4 . . . . 1 . . . . Parts Built 14 | . . . . . . . 8 . . . . 1 . . . . . . . . . . 3 . . 2 . . . . Matter 2139 | . . . . . . . 736 . . . . 213 . . . . . . . . . . 639 . . 551 . . . . Time 901 | . . . . . . . 326 . . . . 152 . . . . . . . . . . 228 . . 195 . . . . Total Part Build Rating 74 | . . . . . . . 39 . . . . 5 . . . . . . . . . . 15 . . 15 . . . . Parts Repaired 18 | . 2 . 3 . 4 . 2 . . . . 3 . . . . . 1 . . . . . . . 3 . . . . Time 765 | . 52 . 146 . 140 . 45 . . . . 180 . . . . . 108 . . . . . . . 94 . . . . Parts Recycled . | . . . . . . . . . . . . . . . . . . . . . . . . . . . . . . . Recycled Matter . | . . . . . . . . . . . . . . . . . . . . . . . . . . . . . . . Retrieved Matter . | . . . . . . . . . . . . . . . . . . . . . . . . . . . . . . . Retrieved Components 35 | . 9 . . . . . 6 . . . . 11 3 . . . . . . . . . . . . 6 . . . . Parts Scanalyzed 8 | . . . 2 . 4 . 1 . . . . . . . . . . . . . . . . . . 1 . . . . Part Schematics Acquired 8 | . . . 2 . 4 . 1 . . . . . . . . . . . . . . . . . . 1 . . . . Parts Damaged 1 | . . . 1 . . . . . . . . . . . . . . . . . . . . . . . . . . . Bothacking | -11 -10 -10 -9 -9 -8 -8 -7 -7 -7 -7 -6 -6 -6 -6 -6 -6 -6 -5 -5 -5 -5 -4 -4 -4 -4 -3 -2 -2 -2 -1 ------------ Run | Scr Mat Min Mat Min Mat Gar Fac Low Low Dat Pro Fac Ext Cet Arc Hub Gar Fac Upp Upp Zhi Pro Fac Upp Upp Res Res Gar Res Acc Used RIF Installer 2 | . . . . . . 1 . . . . . . . . . . 1 . . . . . . . . . . . . . Program Shield 1 | . . . . . . . . . . . . . . . . . 1 . . . . . . . . . . . . . Robots Hacked 18 | . . . . . . . 9 . . . . . . . . . . 1 1 . . . 3 3 . 1 . . . . Non-combat 9 | . . . . . . . 7 . . . . . . . . . . 1 1 . . . . . . . . . . . Combat 9 | . . . . . . . 2 . . . . . . . . . . . . . . . 3 3 . 1 . . . . Robot Hacks Applied 21 | . . . . . . . 12 . . . . . . . . . . 1 1 . . . 3 3 . 1 . . . . parse_system 3 | . . . . . . . 2 . . . . . . . . . . . . . . . . . . 1 . . . . drop_inventory 1 | . . . . . . . 1 . . . . . . . . . . . . . . . . . . . . . . . purge_threat 1 | . . . . . . . 1 . . . . . . . . . . . . . . . . . . . . . . . block_reporting 1 | . . . . . . . 1 . . . . . . . . . . . . . . . . . . . . . . . overload_power 1 | . . . . . . . 1 . . . . . . . . . . . . . . . . . . . . . . . overwrite_iff 5 | . . . . . . . . . . . . . . . . . . . . . . . 3 2 . . . . . . streamctrl_high 1 | . . . . . . . 1 . . . . . . . . . . . . . . . . . . . . . . . formatsys_low 4 | . . . . . . . 2 . . . . . . . . . . 1 1 . . . . . . . . . . . formatsys_high 4 | . . . . . . . 3 . . . . . . . . . . . . . . . . 1 . . . . . . Relay Couplers Released 21 | . . . . . . 7 . . . . . . . . . . 6 5 . . . . . . . 3 . . . . Machine Destruction 15 | . . . . . . 7 . . . . . . . . . . 6 2 . . . . . . . . . . . . Programmers 6 | . . . . . . . . . . . . . . . . . . 3 . . . . . . . 3 . . . . Attached 7 | . . . . . . 1 3 . . . . . . . . . . 1 . . . . 1 1 . . . . . . Robots Rewired 2 | . . . . . . . . . . . . . 1 1 . . . . . . . . . . . . . . . . Allies Hacked . | . . . . . . . . . . . . . . . . . . . . . . . . . . . . . . . Hacks Repelled . | . . . . . . . . . . . . . . . . . . . . . . . . . . . . . . . Allies | -11 -10 -10 -9 -9 -8 -8 -7 -7 -7 -7 -6 -6 -6 -6 -6 -6 -6 -5 -5 -5 -5 -4 -4 -4 -4 -3 -2 -2 -2 -1 -------- Run | Scr Mat Min Mat Min Mat Gar Fac Low Low Dat Pro Fac Ext Cet Arc Hub Gar Fac Upp Upp Zhi Pro Fac Upp Upp Res Res Gar Res Acc Total Allies 40 | . . 3 1 . 1 . 7 . . . 1 . 11 6 . . . 3 1 . . . 3 3 . . . . . . Largest Group 11 | . . 3 1 . 1 1 3 . . . 1 . 9 11 9 7 4 3 2 . . . 2 1 . . . . . . Highest-Rated Group 822 | . . 40 10 . 15 15 143 . . . 95 . 386 822 763 576 368 203 50 . . . 84 58 . . . . . . Highest-Rated Ally 156 | . . 16 10 . 15 15 93 . . . 95 . 156 156 156 95 95 95 28 . . . 47 58 . . . . . . Total Orders 48 | . . . . . . . 5 . . . . 3 . . 2 5 4 5 5 . . . . 5 5 7 . 2 . . STAY 12 | . . . . . . . 1 . . . . . . . 1 4 2 2 1 . . . . . 1 . . . . . FOLLOW 7 | . . . . . . . . . . . . . . . 1 1 2 2 1 . . . . . . . . . . . AID 2 | . . . . . . . . . . . . . . . . . . 1 1 . . . . . . . . . . . EXPLORE 14 | . . . . . . . 3 . . . . 2 . . . . . . 1 . . . . 3 4 . . 1 . . RETURN 13 | . . . . . . . 1 . . . . 1 . . . . . . 1 . . . . 2 . 7 . 1 . . Ally Attacks 398 | . . 4 . . . 4 21 . . . 4 1 8 99 22 46 72 57 2 . . . 6 7 . 42 . 2 . 1 Total Damage 10555 | . . 51 . . . 76 321 . . . 188 2 276 2643 734 1563 2124 1346 9 . . . 183 190 . 826 . 8 . 15 Kills 62 | . . . . . . . 2 . . . . . 2 13 4 10 17 9 . . . . 1 1 . 3 . . . . Allies Corrupted . | . . . . . . . . . . . . . . . . . . . . . . . . . . . . . . . Allies Melted 2 | . . . . . . . . . . . . . 1 . . . . . . . . . 1 . . . . . . . Intel | -11 -10 -10 -9 -9 -8 -8 -7 -7 -7 -7 -6 -6 -6 -6 -6 -6 -6 -5 -5 -5 -5 -4 -4 -4 -4 -3 -2 -2 -2 -1 ------- Run | Scr Mat Min Mat Min Mat Gar Fac Low Low Dat Pro Fac Ext Cet Arc Hub Gar Fac Upp Upp Zhi Pro Fac Upp Upp Res Res Gar Res Acc Robot Analysis Total 7 | . 2 . . . 1 . . . . . . . . . . . . . . . 4 . . . . . . . . . Derelict Logs Recovered 12 | . . 2 . 1 . . . 1 2 . . . . . . . . . . 2 . 1 . 1 2 . . . . . Drone Launches 44 | . . . . . . . 8 . . . . 2 . . . 1 3 . 3 . . . . 3 3 16 . 4 . 1 Drone Recoveries 40 | . . . . . . . 8 . . . . 1 . . . . 3 . 3 . . . . 2 2 16 . 4 . 1 Exploration | -11 -10 -10 -9 -9 -8 -8 -7 -7 -7 -7 -6 -6 -6 -6 -6 -6 -6 -5 -5 -5 -5 -4 -4 -4 -4 -3 -2 -2 -2 -1 ------------- Run | Scr Mat Min Mat Min Mat Gar Fac Low Low Dat Pro Fac Ext Cet Arc Hub Gar Fac Upp Upp Zhi Pro Fac Upp Upp Res Res Gar Res Acc Turns Passed 36186 | 77 1334 1382 2345 1016 1983 1355 3754 648 509 47 685 1504 615 382 1255 396 1035 2084 1491 1044 269 496 1272 2625 1824 3553 509 52 244 401 Spaces Moved 22932 | 43 687 609 1139 592 849 702 2860 914 776 79 637 1562 599 330 259 415 693 1090 833 648 158 277 419 1408 970 2129 71 100 460 624 Core 5 | 3 . . . . . . . . . . . . . . . . . . . . . . . . . 2 . . . . Treads 12753 | 40 687 609 1139 592 849 702 923 . . . . . . . . . 7 1090 833 648 158 277 419 1408 970 1402 . . . . Legs . | . . . . . . . . . . . . . . . . . . . . . . . . . . . . . . . Wheels . | . . . . . . . . . . . . . . . . . . . . . . . . . . . . . . . Hover 8194 | . . . . . . . 1937 914 776 79 637 1562 599 330 259 415 686 . . . . . . . . . . . . . Flight 1980 | . . . . . . . . . . . . . . . . . . . . . . . . . . 725 71 100 460 624 Fastest Speed 29 | 50 160 152 152 155 155 155 40 60 60 60 60 52 60 68 68 63 63 160 160 160 160 160 160 155 156 29 36 36 36 34 Average Speed 115 | 152 160 159 155 155 159 155 89 63 60 60 60 61 64 68 99 65 118 160 160 160 160 160 160 156 156 121 36 36 36 35 Slowest Speed 260 | 160 160 160 160 155 160 155 160 138 125 60 125 125 68 68 138 130 160 160 160 160 160 160 160 160 156 260 36 36 36 36 Overloaded Moves 21 | . . . . . . . 13 . . . . 8 . . . . . . . . . . . . . . . . . . Propulsion Burnouts . | . . . . . . . . . . . . . . . . . . . . . . . . . . . . . . . Robots Hopped 6 | . . . . . . . . . . . . . . . . . . . . . . . . . . . . . . 6 Cave-ins Triggered . | . . . . . . . . . . . . . . . . . . . . . . . . . . . . . . . Teleports 1 | . . . . . . . . . . . . . . . . . . . . . . . . . . 1 . . . . Exploration Rate (%) 57 | 4 98 98 61 83 64 49 60 98 86 68 52 36 64 82 86 33 52 27 78 78 60 43 10 93 97 61 2 36 16 22 Regions Visited 30 Branch Regions 16 Pre-discovered Areas 11 | . 1 2 . 2 . . . . 1 1 . . . . . . . . . . 3 . . 1 . . . . . . Known Exits Taken 22 | . . . . . 1 . 1 1 1 1 1 1 1 1 1 1 . 1 1 1 1 1 1 1 1 1 1 . 1 . Unknown Exits Taken 5 | 1 1 1 1 1 . . . . . . . . . . . . . . . . . . . . . . . . . . Scrap Searched 27 | . . 1 . 2 . . . 4 4 . 1 . . . . . . . 4 3 . 2 . 4 2 . . . . . Spaces Dug 229 | . . 3 9 1 1 30 19 . 4 . 14 27 10 15 . 7 . 19 . . . 11 2 7 7 22 . 4 10 7 Terrain Destroyed 784 | . 38 3 9 1 60 97 49 31 51 . 65 27 10 35 6 7 . 60 6 . . 22 21 17 17 131 . 4 10 7 Melee 103 | . . . 9 1 1 . 15 . 4 . 14 15 10 1 . 7 . . . . . . . 1 . 6 . 2 10 7 Projectile 119 | . . 3 . . . . . . . . . . . . 6 . . 8 6 . . 11 21 16 17 29 . 2 . . AOE 562 | . 38 . . . 59 97 34 31 47 . 51 12 . 34 . . . 52 . . . 11 . . . 96 . . . . Terrain Rammed . | . . . . . . . . . . . . . . . . . . . . . . . . . . . . . . . Walls Destroyed . | . . . . . . . . . . . . . . . . . . . . . . . . . . . . . . . Machines Disabled . | . . . . . . . . . . . . . . . . . . . . . . . . . . . . . . . Actions | -11 -10 -10 -9 -9 -8 -8 -7 -7 -7 -7 -6 -6 -6 -6 -6 -6 -6 -5 -5 -5 -5 -4 -4 -4 -4 -3 -2 -2 -2 -1 --------- Run | Scr Mat Min Mat Min Mat Gar Fac Low Low Dat Pro Fac Ext Cet Arc Hub Gar Fac Upp Upp Zhi Pro Fac Upp Upp Res Res Gar Res Acc Total 30648 | 52 843 973 1569 670 1366 911 3791 953 795 78 896 1967 767 462 1185 527 896 1366 952 656 170 314 796 1772 1218 2794 553 110 520 726 Wait 5373 | . 73 321 288 59 383 132 617 4 5 . 237 264 94 87 844 92 155 146 83 1 . 14 202 269 191 250 481 5 33 43 Move 22889 | 42 686 608 1138 591 848 701 2859 913 775 78 636 1561 598 329 258 414 692 1089 832 647 157 276 418 1407 969 2128 70 99 459 611 Hop 6 | . . . . . . . . . . . . . . . . . . . . . . . . . . . . . . 6 Pick Up 204 | 4 15 8 8 . 12 3 24 2 . . . 10 2 6 2 2 6 23 4 1 1 1 12 12 2 41 . . 1 2 Fast Attach 184 | 6 3 . 6 1 14 2 19 2 1 . . 11 3 2 3 1 3 17 . 1 4 . 3 7 5 55 . . 6 9 Attach 77 | . 3 1 2 . 2 1 9 . . . . 7 1 2 1 2 1 4 . . . . 3 5 1 25 2 2 2 1 Detach 49 | . . . . 1 . . 5 . . . . 3 2 1 2 3 2 3 . . . . 5 1 . 13 . . 5 3 Swap 284 | . 6 6 24 7 15 18 49 7 4 . 6 12 7 10 5 1 3 21 10 2 4 6 18 8 4 31 . . . . Drop 280 | . 10 7 20 1 27 5 26 4 1 . . 9 5 9 4 4 5 24 2 3 3 2 6 17 6 74 . . 2 4 Fire 762 | . 44 20 65 5 57 37 5 10 2 . 3 2 9 7 62 1 2 36 20 . . 14 123 38 40 158 . 2 . . Melee 444 | . . . 9 4 7 9 155 11 7 . 14 88 33 9 4 7 4 . . . 1 . . 3 . 18 . 2 12 47 Ram . | . . . . . . . . . . . . . . . . . . . . . . . . . . . . . . . Kick . | . . . . . . . . . . . . . . . . . . . . . . . . . . . . . . . Crush 31 | . 3 2 9 . 1 2 . . . . . . . . . . . 3 . 1 . . 6 3 . 1 . . . . Escape Stasis 37 | . . . . . . 1 . . . . . . 13 . . . 23 . . . . . . . . . . . . . Rewire 6 | . . . . . . . 5 . . . . . . . . . . . 1 . . . . . . . . . . . Trap 22 | . . . . 1 . . 18 . . . . . . . . . . . . . . 1 . 2 . . . . . . Miscellaneous . | . . . . . . . . . . . . . . . . . . . . . . . . . . . . . . . Route ------- -11/Scrapyard -10/Materials (discovered 5 exits: *Mat x3 / *Min x2) -10/Mines (discovered 3 exits: *Mat x2 / [*Exi]) -9/Materials (discovered 3 exits: *Mat / *Min x2) -9/Mines (discovered 2 exits: *Mat x2) -8/Materials (discovered 5 exits: *Fac x2 / *Sto x2 / Gar) -8/Garrison -7/Factory (discovered 4 exits: *Fac x2 / *Low x2) -7/Lower Caves -7/Lower Caves (discovered 2 exits: *Fac / *Dat) -7/Data Miner -6/Proximity Caves -6/Factory (discovered 5 exits: *Fac x3 / *Low / *Ext) -6/Extension (discovered 2 exits: *Fac / *Cet) -6/Cetus (discovered 2 exits: *Fac / *Arc) -6/Archives (discovered 3 exits: *Fac / *Hub x2) -6/Hub_04(d) (discovered 2 exits: *Fac / Gar) -6/Garrison (discovered 2 exits: *Fac x2) -5/Factory (discovered 4 exits: *Fac x2 / *Upp x2) -5/Upper Caves -5/Upper Caves (discovered 2 exits: *Fac / *Zhi) -5/Zhirov -4/Proximity Caves -4/Factory (discovered 2 exits: *Upp x2) -4/Upper Caves -4/Upper Caves (discovered 2 exits: *Res / *War) -3/Research (discovered 2 exits: *Res x2) -2/Research -2/Garrison -2/Research (discovered 3 exits: *Acc x3) -1/Access To Epsilon Eridani History --------- Turn | Location | Event 45 | -11/Scrapyard | Discovered new exit (range 15) 78 | -11/Scrapyard | Entered Materials 286 | -10/Materials | Central database locked down 306 | -10/Materials | Build established: Mutant 337 | -10/Materials | Discovered new exit (range 16) 614 | -10/Materials | Discovered new exit (range 8) 683 | -10/Materials | Discovered new exit (range 14) 830 | -10/Materials | Discovered new exit (range 4) 1107 | -10/Materials | Discovered new exit (range 11) 1202 | -10/Materials | Repaired Lgt. Treads 1230 | -10/Materials | Repaired Lgt. Treads? 1412 | -10/Materials | Entered Mines 1437 | -10/Mines | Learned location of Recycling (-8) 1481 | -10/Mines | Assisted by bots powering up and referring to "LRC-V3" 1528 | -10/Mines | Discovered new exit (range 10) 1562 | -10/Mines | Assembled infested the area 1595 | -10/Mines | Met 8R-AWN 1743 | -10/Mines | Discovered new exit (range 5) 1886 | -10/Mines | Learned location of Zion (-6) 1964 | -10/Mines | Core integrity fell below 50% 2111 | -10/Mines | Met a Derelict who couldn't figure out how to use a Trap Extractor 2621 | -10/Mines | Discovered new exit (range 5) 2794 | -10/Mines | Entered Materials 2794 | -9/Materials | Evolved 2 slots: Propulsion x1, Utility x1 3093 | -9/Materials | Discovered new exit (range 15) 3195 | -9/Materials | Discovered new exit (range 13) 3415 | -9/Materials | Discovered new exit (range 7) 3442 | -9/Materials | Build established: Scavenger-Mutant 4416 | -9/Materials | Repaired Broken Cmb. Airjet 4455 | -9/Materials | Repaired Adv. Treads? 4810 | -9/Materials | Build established: Mutant 4972 | -9/Materials | Repaired Hrd. Medium Armor Plating 5139 | -9/Materials | Entered Mines 5182 | -9/Mines | Discovered new exit (range 7) 5195 | -9/Mines | Found the Drone Emporium 5205 | -9/Mines | Found Prototype Device 5205 | -9/Mines | Identified Splice Drone Bay 5404 | -9/Mines | Learned location of Storage (-8) 5667 | -9/Mines | Discovered new exit (range 5) 6155 | -9/Mines | Entered Materials 6155 | -8/Materials | Evolved 2 slots: Utility x2 6209 | -8/Materials | Discovered new exit (range 6) 6415 | -8/Materials | Identified exit to Storage 6436 | -8/Materials | Build established: Scavenger-Mutant 7170 | -8/Materials | Discovered new exit (range 7) 7534 | -8/Materials | Repaired Hrd. Medium Armor Plating 7585 | -8/Materials | Repaired Cmb. Airjet 7612 | -8/Materials | Repaired Lgt. Armor Plating 7640 | -8/Materials | Repaired Lgt. Armor Plating 7768 | -8/Materials | Discovered new exit (range 7) 7945 | -8/Materials | Garrison activated, responded to threat 7978 | -8/Materials | Identified exit to Garrison 8138 | -8/Materials | Entered Garrison 8138 | -8/Garrison | Accompanied by 1 ally 8146 | -8/Garrison | Installed Relay Interface Framework 8302 | -8/Garrison | Triggered checkpoint 8350 | -8/Garrison | Destroyed 7 combat bots 8529 | -8/Garrison | Triggered checkpoint 8571 | -8/Garrison | Discovered new exit (range 14) 8754 | -8/Garrison | Triggered checkpoint 8861 | -8/Garrison | Garrison Relay disabled 9235 | -8/Garrison | Triggered checkpoint 9493 | -8/Garrison | Entered Factory 9493 | -7/Factory | Evolved 2 slots: Propulsion x1, Utility x1 9635 | -7/Factory | Lost 4 parts (2n2u) 10077 | -7/Factory | Found Prototype Launcher 10439 | -7/Factory | Build established: Bothacker-Mutant 10661 | -7/Factory | Identified exit to Lower Caves 11210 | -7/Factory | Cargo convoy interrupted 11216 | -7/Factory | P-60 Hacker assimilated allied Freighter 4a 11431 | -7/Factory | Build established: Mutant 11478 | -7/Factory | Identified Rocket Array 11649 | -7/Factory | Discovered new exit (range 11) 11692 | -7/Factory | Identified exit to Factory 11893 | -7/Factory | First assault squad dispatched 12231 | -7/Factory | Garrison activated, responded to threat 12387 | -7/Factory | Fabricated Adv. Sensor Array? 12402 | -7/Factory | Fabricated Cmb. Airjet? 12464 | -7/Factory | Fabricated Cmb. Airjet? 12576 | -7/Factory | Fabricated Cmb. Airjet (x2) 12719 | -7/Factory | Fabricated Imp. Melee Analysis Suite? 12873 | -7/Factory | Build established: Machinist-Mutant 12876 | -7/Factory | Discovered exit to Factory (range 11) 13004 | -7/Factory | Repaired Cld. Aerolev Unit? 13007 | -7/Factory | Local fabrication network quarantined 13063 | -7/Factory | Repaired Imp. Light Armor Plating 13247 | -7/Factory | Entered Lower Caves 13562 | -7/Lower Caves | Learned 4 Factory zone layouts 13617 | -7/Lower Caves | Discovered new exit (range 11) 13893 | -7/Lower Caves | Identified exit to Lower Caves 13895 | -7/Lower Caves | Entered another Lower Caves area 13946 | -7/Lower Caves | Discovered exit to Factory (range 11) 14185 | -7/Lower Caves | Encountered a Warlord checkpoint 14198 | -7/Lower Caves | Learned Factory security intel 14392 | -7/Lower Caves | Discovered new exit (range 11) 14401 | -7/Lower Caves | Identified exit to Data Miner 14404 | -7/Lower Caves | Entered Data Miner 14404 | -7/Data Miner | Discovered new exit (range 6) 14416 | -7/Data Miner | Met Data Miner 14428 | -7/Data Miner | Learned location of Section 7 (-3) 14428 | -7/Data Miner | Acquired the access code to Warlord's prototype stash 14438 | -7/Data Miner | Received God Mode back door access code from Data Miner 14450 | -7/Data Miner | Identified exit to Proximity Caves 14451 | -7/Data Miner | Entered Proximity Caves 15010 | -6/Proximity Caves | Core integrity fell below 50% 15103 | -6/Proximity Caves | Discovered exit to Factory (range 15) 15135 | -6/Proximity Caves | Attracted the attention of an 0b10 base 15136 | -6/Proximity Caves | Entered Factory 15136 | -6/Factory | Evolved 2 slots: Utility x2 15239 | -6/Factory | Discovered new exit (range 11) 15244 | -6/Factory | Identified exit to Factory 15404 | -6/Factory | Discovered exit to Factory (range 18) 15466 | -6/Factory | Spotted B-75 Beast 15527 | -6/Factory | Destroyed Beast 5a 15545 | -6/Factory | Incoming investigation squad redirected 15608 | -6/Factory | Discovered new exit (range 15) 15636 | -6/Factory | Incoming investigation squad redirected 15654 | -6/Factory | System corruption reached 10% 15783 | -6/Factory | Identified exit to Lower Caves 15838 | -6/Factory | Build established: Scout 15840 | -6/Factory | Repaired Cold Fusion Reactor 15891 | -6/Factory | Repaired Cmb. Airjet 15941 | -6/Factory | Repaired Cmb. Airjet 16012 | -6/Factory | Discovered exit to Factory (range 13) 16440 | -6/Factory | Local fabrication network quarantined 16447 | -6/Factory | Fabricated Lgt. Regenerative Plating? 16566 | -6/Factory | Discovered new exit (range 14) 16639 | -6/Factory | Identified exit to Extension 16640 | -6/Factory | Entered Extension 16762 | -6/Extension | Build established: Mutant 16973 | -6/Extension | Rescued a captive Derelict 16976 | -6/Extension | Rescued a captive Derelict 17050 | -6/Extension | Rescued a captive Derelict 17051 | -6/Extension | Rescued a captive Derelict 17068 | -6/Extension | Rescued a captive Derelict 17069 | -6/Extension | Rescued a captive Derelict 17079 | -6/Extension | Rescued a captive Derelict 17129 | -6/Extension | Rescued a captive Derelict 17130 | -6/Extension | Rescued a captive Derelict 17180 | -6/Extension | Rescued A7 17205 | -6/Extension | Discovered exit to Factory (range 10) 17206 | -6/Extension | Discovered new exit (range 6) 17224 | -6/Extension | Identified exit to Cetus 17234 | -6/Extension | Build established: Machinist-Mutant 17255 | -6/Extension | Entered Cetus 17255 | -6/Cetus | Accompanied by 9 allies (A7) 17260 | -6/Cetus | Acquired a Cetus Manufacturing Module code from A7 17266 | -6/Cetus | Spotted Cetus Guard 17266 | -6/Cetus | Spotted Cetus Guard 17271 | -6/Cetus | Spotted Cetus Guard 17277 | -6/Cetus | Spotted Cetus Guard 17282 | -6/Cetus | Allies destroyed Cetus Guard 17284 | -6/Cetus | Allies destroyed Cetus Guard 17289 | -6/Cetus | Allies destroyed Cetus Guard 17291 | -6/Cetus | Rewired Cetus Guard 17345 | -6/Cetus | Started Cetus Manufacturing Module 17365 | -6/Cetus | Incoming investigation squad redirected 17370 | -6/Cetus | Manufactured an Enhanced Grunt 17395 | -6/Cetus | Manufactured an Enhanced Grunt 17420 | -6/Cetus | Manufactured an Enhanced Grunt 17445 | -6/Cetus | Manufactured an Enhanced Grunt 17470 | -6/Cetus | Manufactured an Enhanced Grunt 17507 | -6/Cetus | Escorted A7 to Cetus Mainframe 17525 | -6/Cetus | Discovered new exit (range 15) 17537 | -6/Cetus | Destroyed 7 combat bots 17548 | -6/Cetus | Spotted Cetus Guard 17548 | -6/Cetus | Spotted Cetus Guard 17557 | -6/Cetus | Spotted Cetus Guard 17557 | -6/Cetus | Spotted Cetus Guard 17571 | -6/Cetus | Allies destroyed Cetus Guard 17573 | -6/Cetus | Allies destroyed Cetus Guard 17573 | -6/Cetus | Allies destroyed Cetus Guard 17574 | -6/Cetus | Allies destroyed Cetus Guard 17581 | -6/Cetus | Discovered exit to Factory (range 15) 17585 | -6/Cetus | Met Revision 17 17613 | -6/Cetus | Identified exit to Archives 17637 | -6/Cetus | Entered Archives 17637 | -6/Archives | Accompanied by 9 allies (A7) 17642 | -6/Archives | Received a hacking code to weaken MAIN.C 17687 | -6/Archives | Discovered new exit (range 16) 17713 | -6/Archives | Build established: Commander-Mutant 17827 | -6/Archives | Discovered new exit (range 13) 17886 | -6/Archives | Discovered exit to Factory (range 15) 18064 | -6/Archives | Unable to access archive contents 18303 | -6/Archives | Build established: Scavenger-Mutant 18879 | -6/Archives | Identified exit to Hub_04(d) 18892 | -6/Archives | Entered Hub_04(d) 18892 | -6/Hub_04(d) | Accompanied by 7 allies 18937 | -6/Hub_04(d) | Spotted B-75 Beast 18941 | -6/Hub_04(d) | Identified exit to Garrison 18975 | -6/Hub_04(d) | Discovered exit to Factory (range 16) 19161 | -6/Hub_04(d) | Network Hub disabled 19288 | -6/Hub_04(d) | Entered Garrison 19288 | -6/Garrison | Accompanied by 4 allies 19461 | -6/Garrison | Triggered checkpoint 19528 | -6/Garrison | Core integrity fell below 50% 19667 | -6/Garrison | Discovered exit to Factory (range 12) 19749 | -6/Garrison | Triggered checkpoint 19800 | -6/Garrison | Discovered exit to Factory (range 9) 19820 | -6/Garrison | Expanded RIF knowledge: Program Shield 19924 | -6/Garrison | Garrison Relay disabled 19976 | -6/Garrison | Triggered checkpoint 20044 | -6/Garrison | Triggered checkpoint 20107 | -6/Garrison | Garrison Relay disabled 20323 | -6/Garrison | Entered Factory 20323 | -5/Factory | Accompanied by 2 allies 20323 | -5/Factory | Evolved 2 slots: Power x1, Utility x1 20618 | -5/Factory | Discovered new exit (range 11) 20632 | -5/Factory | Identified exit to Factory 20950 | -5/Factory | Found Unknown Protection 20950 | -5/Factory | Identified Imp. Powered Armor 21369 | -5/Factory | Discovered exit to Factory (range 5) 21471 | -5/Factory | Repaired Centrium Medium Armor Plating? 21567 | -5/Factory | Cargo convoy interrupted 21823 | -5/Factory | First assault squad dispatched 22046 | -5/Factory | Identified exit to Upper Caves 22141 | -5/Factory | Incoming assault squad redirected 22172 | -5/Factory | Incoming assault squad redirected 22407 | -5/Factory | Entered Upper Caves 22407 | -5/Upper Caves | Accompanied by 1 ally 22455 | -5/Upper Caves | Build established: Bothacker-Mutant 23364 | -5/Upper Caves | Build established: Mutant 23642 | -5/Upper Caves | Discovered new exit (range 4) 23765 | -5/Upper Caves | Build established: Scavenger-Mutant 23886 | -5/Upper Caves | Found Alien Artifact 23896 | -5/Upper Caves | Identified exit to Upper Caves 23898 | -5/Upper Caves | Entered another Upper Caves area 23997 | -5/Upper Caves | Discovered exit to Factory (range 6) 24050 | -5/Upper Caves | Learned Factory emergency access door positions 24626 | -5/Upper Caves | Learned Factory security intel 24816 | -5/Upper Caves | Discovered new exit (range 9) 24829 | -5/Upper Caves | Identified exit to Zhirov 24942 | -5/Upper Caves | Entered Zhirov 24942 | -5/Zhirov | Discovered new exit (range 3) 24971 | -5/Zhirov | Met Zhirov 25006 | -5/Zhirov | Learned location of Quarantine (-3) 25006 | -5/Zhirov | Learned location of Testing (-2) 25006 | -5/Zhirov | Learned location of Command (-1) 25016 | -5/Zhirov | Zhirov requested help retrieving the SGEMP Prototype 25042 | -5/Zhirov | Found Alien Artifact 25042 | -5/Zhirov | Identified Integrated Dissipator 25042 | -5/Zhirov | Installed Integrated Dissipator, increased core heat dissipation (+20) 25141 | -5/Zhirov | Found Alien Artifact 25206 | -5/Zhirov | Identified exit to Proximity Caves 25211 | -5/Zhirov | Entered Proximity Caves 25533 | -4/Proximity Caves | Learned 8 Research zone layouts 25604 | -4/Proximity Caves | Discovered exit to Factory (range 9) 25707 | -4/Proximity Caves | Entered Factory 25707 | -4/Factory | Evolved 2 slots: Propulsion x2 26123 | -4/Factory | Destroyed 7 combat bots 26372 | -4/Factory | Identified exit to Upper Caves 26461 | -4/Factory | Found Quantum Capacitor 26486 | -4/Factory | Incoming investigation squad redirected 26591 | -4/Factory | Fabricated Exp. Targeting Computer (x1) 26671 | -4/Factory | Fabricated Exp. Targeting Computer? 26736 | -4/Factory | Destroyed 9 combat bots 26744 | -4/Factory | First assault squad dispatched 26766 | -4/Factory | Incoming assault squad redirected 26855 | -4/Factory | Fabricated Exp. Targeting Computer (x1) 26961 | -4/Factory | System corruption reached 10% 26979 | -4/Factory | Entered Upper Caves 27245 | -4/Upper Caves | Encountered a Warlord checkpoint 27343 | -4/Upper Caves | Build established: Mutant 27947 | -4/Upper Caves | Build established: Scavenger-Mutant 28258 | -4/Upper Caves | Destroyed Titan 7a 28347 | -4/Upper Caves | Found Alien Artifact 28347 | -4/Upper Caves | Identified Core Expander 28347 | -4/Upper Caves | Installed Core Expander, added new Propulsion slot 29018 | -4/Upper Caves | Discovered new exit (range 13) 29064 | -4/Upper Caves | Identified exit to Upper Caves 29353 | -4/Upper Caves | Attracted the attention of an 0b10 checkpoint 29604 | -4/Upper Caves | Entered another Upper Caves area 29604 | -4/Upper Caves | Discovered new exit (range 10) 29624 | -4/Upper Caves | Attracted the attention of an 0b10 checkpoint 29673 | -4/Upper Caves | Destroyed 7 combat bots 30081 | -4/Upper Caves | Learned Research stockpile data 30779 | -4/Upper Caves | Discovered new exit (range 8) 30789 | -4/Upper Caves | Identified exit to Warlord 30801 | -4/Upper Caves | Learned Research stockpile data 31426 | -4/Upper Caves | Identified exit to Research 31428 | -4/Upper Caves | Entered Research 31428 | -3/Research | Evolved 2 slots: Propulsion x1, Utility x1 31429 | -3/Research | Identified exit to Research 31436 | -3/Research | Spotted B-86 Titan 31482 | -3/Research | Destroyed Titan 8a 31628 | -3/Research | Revision forces began assault on 0b10 31669 | -3/Research | Met up with Revision 17++ 31780 | -3/Research | Fabricated Centrium Heavy Treads (x1) 31889 | -3/Research | Fabricated Assault Drone Bay? 31919 | -3/Research | Local fabrication network quarantined 32128 | -3/Research | Research terminal network offline 32441 | -3/Research | Spotted Striker 32444 | -3/Research | Spotted Striker 32446 | -3/Research | Destroyed Striker 32551 | -3/Research | Spotted Striker 32561 | -3/Research | Spotted Striker 32599 | -3/Research | Destroyed Striker 32625 | -3/Research | Destroyed Striker 32831 | -3/Research | Found Gamma Bomb Array 32892 | -3/Research | Repaired Hrd. Heavy Armor Plating 33040 | -3/Research | Found Prototype Device 33056 | -3/Research | Identified System Purifier 33148 | -3/Research | Found Adv. Powered Armor 33166 | -3/Research | Repaired Centrium Medium Armor Plating? 33309 | -3/Research | Repaired Hvy. Treads 33392 | -3/Research | Spotted B-86 Titan 33394 | -3/Research | Found Prototype Processor 33406 | -3/Research | Identified Spectral Analyzer 33479 | -3/Research | Spotted Striker 33480 | -3/Research | Spotted Striker 33482 | -3/Research | Destroyed Striker 33491 | -3/Research | Destroyed Striker 33602 | -3/Research | Found Unknown Launcher 33645 | -3/Research | Identified Fusion Bomb Launcher 33891 | -3/Research | Discovered exit to Research (range 12) 33909 | -3/Research | Spotted Striker 33926 | -3/Research | Destroyed Striker 34030 | -3/Research | Spotted Striker 34083 | -3/Research | Destroyed Striker 34099 | -3/Research | Spotted Striker 34101 | -3/Research | Destroyed Striker 34202 | -3/Research | Spotted Executioner 34202 | -3/Research | Spotted Striker 34209 | -3/Research | Destroyed Striker 34221 | -3/Research | Destroyed Executioner 34225 | -3/Research | Spotted Executioner 34225 | -3/Research | Spotted Striker 34252 | -3/Research | Destroyed Executioner 34275 | -3/Research | Spotted Striker 34277 | -3/Research | Destroyed Striker 34337 | -3/Research | Spotted Striker 34353 | -3/Research | Destroyed Striker 34382 | -3/Research | Spotted Striker 34400 | -3/Research | Destroyed 11 combat bots 34407 | -3/Research | Spotted Striker 34409 | -3/Research | Spotted Striker 34422 | -3/Research | Spotted Executioner 34425 | -3/Research | Spotted Striker 34425 | -3/Research | Spotted Executioner 34430 | -3/Research | Destroyed Striker 34442 | -3/Research | Spotted Striker 34449 | -3/Research | Identified Transdimensional Reconstructor 34449 | -3/Research | Warped through subspace 34480 | -3/Research | Destroyed Striker 34493 | -3/Research | Lost 7 parts (1p2n3u1w) 34494 | -3/Research | Destroyed Striker 34506 | -3/Research | Allies destroyed Executioner 34511 | -3/Research | Destroyed Striker 34553 | -3/Research | Identified Dimensional Node Initializer 34553 | -3/Research | Initialized slip node 34584 | -3/Research | Lost 8 parts (1p2n3u2w) 34602 | -3/Research | Spotted Striker 34685 | -3/Research | Found Prototype Device 34686 | -3/Research | Identified Exp. Thermal Shield 34801 | -3/Research | System corruption reached 10% 34812 | -3/Research | Core integrity fell below 50% 34863 | -3/Research | Spotted Striker 34865 | -3/Research | Spotted Executioner 34882 | -3/Research | Lost 11 parts (7n4u) 34947 | -3/Research | Found Prototype Processor 34947 | -3/Research | Identified Exp. Core Analyzer 34961 | -3/Research | Spotted Striker 34972 | -3/Research | Spotted Striker 34981 | -3/Research | Entered another Research area 34981 | -2/Research | Evolved 2 slots: Utility x2 34990 | -2/Research | Identified exit to Garrison 34997 | -2/Research | Lost 4 parts (3n1u) 35231 | -2/Research | First assault squad dispatched 35250 | -2/Research | Incoming assault squad redirected 35490 | -2/Research | Entered Garrison 35504 | -2/Garrison | Spotted B-90 Cyclops 35510 | -2/Garrison | Triggered checkpoint 35530 | -2/Garrison | Discovered new exit (range 22) 35542 | -2/Garrison | Identified exit to Research 35542 | -2/Garrison | Entered Research 35585 | -2/Research | Identified exit to Access 35625 | -2/Research | Spotted B-90 Cyclops 35786 | -2/Research | Entered Access 35786 | -1/Access | Evolved 2 slots: Utility x2 36131 | -1/Access | Spotted B-99 Colossus 36182 | -1/Access | Discovered new exit (range 4) 36185 | -1/Access | Identified exit to Surface 36187 | *** | Escaped! Last Messages --------------- 36142_ Penetrated by Slug. 36142_ Splice Drone Bay destroyed. 36142_ Slug penetrates Wall. 36146_ Critical hit (Burn: +37). 36161_ Acquired Reaction Control System. 36162_ Dropped Impulse Thruster Array. 36163_ Acquired Impulse Thruster Array. 36165_ Dropped Maneuvering Thrusters. 36166_ Acquired Reaction Control System. 36179_ Connecting with Terminal... >>Open Sealed Barrier opened. >>Force(Sabotage) SYSTEM_VULNERABLE[Wave Collapse Detector] NETWORK_OVERLOAD_FAIL 36179_ ALERT: Suspicious activity at Terminal A001. Dispatching Investigation squad. 36182_ Main Access Shell breached. 36182_ EXIT=FOUND 36185_ EXIT=IDENTIFIED: SURFACE Map ----- +----------------------------------------------------+ | ???# " #????????????????????????????????? | | ???# #????????????????????????????????? | | ???# #????????????????????????????????? | | ???# #????????????????????????????????? | | ???# #????????????????????????????????? | | ???# #????????????????????????????????? | | ???? #????????????????????????????????? | | ?????? ??????????????????????????????????? | | ???????? ????????????????????????????????????? | | ???????###+##????????????????????????????????????? | | ???????# ########################+#########???? | | ???????# ?? | | ???????#! ?? | | ???????# ######### ""#####/#???????????? | | ???????## ##???????# ""#?????????????????? | | ????????# #????????# ""#?????????????????? | | ????????# ########?# T#?????????????????? | | ????????# ## #?# ""#?????????????????? | | ######### ## [ #?# ""#?????????????????? | | " [ ## ## ### ""##????????????????? | | """ ## ## ## #????????????????? | | """ # # ### ##????????????????? | | " + # #?# #?????????????????? | | # + #?# " """" #?????????????????? | | # # #?# " " #?????????????????? | | | ###### #?# ?" @" " #?????????????????? | | ! #????# [! #?#??" "" " #?????????????????? | | ########????# [ #????" " #?????????????????? | | ????????????# [! #????"""""" #?????????????????? | | ????????????#######?????????? #?????????????????? | | ################?????????????""#?????????????????? | | #?????????????????????????????????? | | #?????????????????????????????????? | | #?????????????????????????????????? | | ####+###### #?????????????????????????????????? | | ?????????????????????????????????????????????????? | | ?????????????????????????????????????????????????? | | ?????????????????????????????????????????????????? | | ?????????????????????????????????????????????????? | | ???????????????#?????????????????????????????????? | | ????????????? #?????????????????????????????????? | | ########### #?????????????????????????????????? | | #?????????????????????????????????? | | ######????????????????????????????? | | ???????????????????????????? | | ???????????????????????????? | | ???????????????????????????? | | ######### ?????????????????????????????? | | % #????????????????????????????????????????? | | """ #????????????????????????????????????????? | +----------------------------------------------------+ Best States ------------- Heat Dissipation 97 Energy Generation 47 Energy Capacity 640 Matter Stores 300 Matter Capacity 300 Sight Range 24 Robot Scan Range 16 Terrain Scan Density 10 Jamming Range 12 Power Amplification 30 Armor Coverage 2000 Resistance: KI 25 Resistance: TH 30 Propulsion Shielding 66 Weapon Cycling 15 Phase Shifting 5 Evasion (%) 75 Targeting Accuracy 36 Melee Accuracy 12 Core Analysis 15 Recoil Reduction 8 Particle Charging 20 Kinecelleration 40 Offensive Hacking 23 Defensive Hacking 24 Relay Coupler Types 50 Relay Coupler Value 2 Item Schematics ----------------- Cmb. Airjet | -9/Materials | Scanalyzed Hacking Suite | -9/Materials | Scanalyzed Datajack | -8/Materials | Scanalyzed Imp. Trap Extractor | -8/Materials | Scanalyzed Structural Scanner | -8/Materials | Scanalyzed Lgt. Nuclear Core | -8/Materials | Scanalyzed Adv. Sensor Array | -7/Factory | Hacked Impact Mace | -7/Factory | Scanalyzed Imp. Melee Analysis Suite | -7/Factory | Hacked Combat Drone Bay | -7/Data Miner | Free Lgt. Regenerative Plating | -7/Data Miner | Free Cmb. Gravmag System | -7/Data Miner | Free Exp. Targeting Computer | -7/Data Miner | Free Exp. Transmission Jammer | -7/Data Miner | Free Exp. ECM Suite | -7/Data Miner | Free Cloaking Device | -7/Data Miner | Free Assault Drone Bay | -5/Zhirov | Free Exp. Heat Sink | -5/Zhirov | Free Exp. Optical Array | -5/Zhirov | Free Imp. Arc Thrower | -5/Zhirov | Free Centrium Heavy Treads | -3/Research | Scanalyzed Robot Schematics ------------------ S-27 Virus | -7/Data Miner | Free G-50 Soldier | -7/Data Miner | Free G-67 Veteran | -7/Data Miner | Free L-41 Fighter | -7/Data Miner | Free X-72 Disruptor | -7/Data Miner | Free P-70 Sage | -7/Data Miner | Free I-36 Angel | -7/Data Miner | Free I-47 Archangel | -7/Data Miner | Free Fabricated ------------ Adv. Sensor Array | x1 | -7/Factory Cmb. Airjet | x2 | -7/Factory Cmb. Airjet | x2 | -7/Factory Cmb. Airjet | x2 | -7/Factory Imp. Melee Analysis Suite | x1 | -7/Factory Lgt. Regenerative Plating | x1 | -6/Factory Exp. Targeting Computer | x1 | -4/Factory Exp. Targeting Computer | x1 | -4/Factory Exp. Targeting Computer | x1 | -4/Factory Centrium Heavy Treads | x1 | -3/Research Assault Drone Bay | x1 | -3/Research Alien Tech Used ----------------- Integrated Dissipator Core Expander Transdimensional Reconstructor Dimensional Node Initializer Achievements -------------- None Challenges ------------ None Game ------ Seed WeightMediumDatajack Manual? 0 Play Time 04:28:01 Cumulative 809.0 hours Start 2021.05.05 @ 04:33:15 End 2021.05.06 @ 14:30:20 Sessions 9 Manual Loads 0 Difficulty Rogue Special Mode None Game No. 562 Rogue 558 Adventurer 4 Explorer 0 Win Type 0 Total 89 Types 68/9/4/4/2/0/0/1/1 Lore% 95 Gallery% 97 Achievement% 96 Wizard Run 0 Options --------- ASCII 0 Keyboard 1 Movement Vi Keybinds 0 Fullscreen 0 Font 16/Terminus Map View 76x50 Tactical HUD 1 Map Filters NONE Filters NONE Steam 1 RUN: 94703e84-df7c-498a-9218-10fa912d483f